[Event "Srdja Dragasevic Memorial-A 2024"]
[Site "Cetinje"]
[Date "2024.06.25"]
[Round "5.14"]
[White "Pogorelskikh, Sofia"]
[Black "Guleryuz, Kuzey"]
[Result "0-1"]
[ECO "C16"]
[WhiteElo "2216"]
[BlackElo "1971"]
[Annotator "RC"]
[PlyCount "88"]
[EventDate "2024.06.23"]
[EventType "swiss"]
[EventCountry "MNE"]
[SourceTitle "playchess.com"]
[Source "ChessBase"]
[SourceQuality "1"]
[TimeControl "40/5400+30:1800+30"]

1. e4 {[%emt 0:00:19]} e6 {[%emt 0:00:03]} 2. d4 {[%emt 0:00:16]} d5 {[%emt 0:00:06]} 3. Nc3 {[%emt 0:00:11]} Bb4 {[%emt 0:00:25]} 4. e5 {[%emt 0:00:32]} Ne7 {[%emt 0:00:26]} 5. Nge2 {[%emt 0:10:54]} c5 {[%emt 0:07:29]} 6. a3 {[%emt 0:07:06]} cxd4 {[%emt 0:01:03]} 7. axb4 {[%emt 0:03:11]} dxc3 {[%emt 0:00:06]} 8. Nxc3 {[%emt 0:09:53]} Nbc6 {[%emt 0:09:19]} 9. b5 {[%emt 0:04:15]} Nxe5 {[%emt 0:02:07]} 10. Qd4 {[%emt 0:03:02]} f6 {[%emt 0:00:50]} 11. Be2 {[%emt 0:11:59]} Nf5 {[%emt 0:12:49]} 12. Qb4 {[%emt 0:05:46]} b6 {[%emt 0:14:42]} 13. f4 {[%emt 0:04:50]} Nd7 {[%emt 0:08:07]} 14. O-O {[%emt 0:02:44]} Bb7 {[%emt 0:05:18]} 15. Bg4 {[%emt 0:03:23]} g6 {[%emt 0:03:25]} 16. Re1 {[%emt 0:03:57]} Kf7 {[%emt 0:00:10]} 17. Ne2 {[%emt 0:01:32]} Nc5 {[%emt 0:08:04]} 18. Bxf5 {[%emt 0:02:57]} gxf5 {[%emt 0:00:47]} 19. Nd4 {[%emt 0:01:03]} Ne4 {[%emt 0:03:18]} 20. Qb3 {[%emt 0:03:08]} h5 {[%emt 0:00:14]} 21. Qf3 {[%emt 0:01:10]} h4 {[%emt 0:01:51]} 22. Be3 {[%emt 0:01:23]} Qc7 {[%emt 0:01:39]} 23. Ra3 {[%emt 0:01:50]} Bc8 {[%emt 0:02:13]} 24. Rea1 {[%emt 0:01:38]} Bd7 {[%emt 0:00:50]} 25. Bf2 {[%emt 0:01:27]} Kg6 {[%emt 0:02:58]} 26. Qe2 {[%emt 0:06:17]} Rh7 {[%emt 0:08:30]} 27. Nf3 {[%emt 0:03:22]} Nxf2 {[%emt 0:02:10]} 28. Qxf2 {[%emt 0:00:11]} Qxf4 {[%emt 0:00:37]} 29. Ra4 {[%emt 0:00:16]} Qc7 {[%emt 0:00:01]} 30. Nxh4+ {[%emt 0:01:00]} Kf7 {[%emt 0:00:14]} 31. Qg3 {[%emt 0:02:16]} Qc5+ {[%emt 0:01:21]} 32. Kh1 {[%emt 0:00:36]} Rg7 {[%emt 0:01:08]} 33. Qf3 {[%emt 0:00:43]} Qxc2 {[%emt 0:01:39]} 34. Qh5+ {[%emt 0:00:49]} Ke7 {[%emt 0:00:50]} 35. Re1 {[%emt 0:02:23]} Kd6 {[%emt 0:01:00]} 36. Raa1 {[%emt 0:00:41]} Bxb5 {[%emt 0:01:26]} 37. Rac1 {[%emt 0:00:39]} Qd2 {[%emt 0:00:19]} 38. Qf3 {[%emt 0:00:46]} Qg5 {[%emt 0:00:59]} 39. Qa3+ {[%emt 0:00:14]} Kd7 {[%emt 0:00:01]} 40. Qc3 {[%emt 0:00:00]} Bc4 {[%emt 0:00:00]} 41. b3 {[%emt 0:03:43]} Qxh4 {[%emt 0:10:14]} 42. bxc4 {[%emt 0:00:10]} Rh8 {[%emt 0:00:12]} 43. h3 {[%emt 0:00:14]} Rg3 {[%emt 0:00:22]} 44. Re3 {[%emt 0:29:44]} Qxh3+ {[%emt 0:00:09]} 0-1

[Event "Srdja Dragasevic Memorial-A 2024"]
[Site "Cetinje"]
[Date "2024.06.25"]
[Round "5.15"]
[White "Abdulkarimli, Eljan"]
[Black "Koljevic, Nikolina"]
[Result "1-0"]
[ECO "D42"]
[WhiteElo "2124"]
[BlackElo "2010"]
[Annotator "RC"]
[PlyCount "51"]
[EventDate "2024.06.23"]
[EventType "swiss"]
[EventCountry "MNE"]
[SourceTitle "playchess.com"]
[Source "ChessBase"]
[SourceQuality "1"]
[TimeControl "40/5400+30:1800+30"]

1. e4 {[%emt 0:02:17]} c6 {[%emt 0:00:09]} 2. c4 {[%emt 0:01:26]} d5 {[%emt 0:00:13]} 3. exd5 {[%emt 0:00:16]} cxd5 {[%emt 0:00:09]} 4. cxd5 {[%emt 0:00:04]} Nf6 {[%emt 0:00:19]} 5. Nc3 {[%emt 0:01:02]} Nxd5 {[%emt 0:00:47]} 6. Nf3 {[%emt 0:00:15]} e6 {[%emt 0:00:58]} 7. d4 {[%emt 0:02:34]} Be7 {[%emt 0:01:13]} 8. Bd3 {[%emt 0:01:32]} Nc6 {[%emt 0:02:46]} 9. O-O {[%emt 0:00:33]} O-O {[%emt 0:00:32]} 10. Re1 {[%emt 0:00:49]} Bf6 {[%emt 0:01:33]} 11. Be4 {[%emt 0:08:23]} a6 {[%emt 0:09:12]} 12. a3 {[%emt 0:11:43]} Nce7 {[%emt 0:08:56]} 13. h4 {[%emt 0:07:53]} b5 {[%emt 0:05:58]} 14. Qd3 {[%emt 0:04:55]} g6 {[%emt 0:02:40]} 15. h5 {[%emt 0:14:04]} Ra7 {[%emt 0:03:24]} 16. g3 {[%emt 0:07:36]} Bb7 {[%emt 0:09:12]} 17. Kg2 {[%emt 0:04:50]} Nxc3 {[%emt 0:07:20]} 18. bxc3 {[%emt 0:03:43]} Bxe4 {[%emt 0:00:37]} 19. Rxe4 {[%emt 0:02:31]} Qd5 {[%emt 0:03:00]} 20. Bf4 {[%emt 0:01:56]} Rc8 {[%emt 0:05:07]} 21. hxg6 {[%emt 0:01:49]} hxg6 {[%emt 0:01:04]} 22. Be5 {[%emt 0:11:16]} Kg7 {[%emt 0:06:07]} 23. Rh1 {[%emt 0:01:11]} Ng8 {[%emt 0:01:29]} 24. Qe3 {[%emt 0:02:06]} Rxc3 {[%emt 0:04:40]} 25. Bxf6+ {[%emt 0:00:35]} Kxf6 {[%emt 0:00:27]} 26. Rf4+ {[%emt 0:00:07]} 1-0

[Event "Srdja Dragasevic Memorial-A 2024"]
[Site "Cetinje"]
[Date "2024.06.25"]
[Round "5.16"]
[White "Engin, Onur Cinar"]
[Black "Skvortsova, Alena"]
[Result "1/2-1/2"]
[ECO "C41"]
[WhiteElo "2114"]
[BlackElo "2170"]
[Annotator "RC"]
[PlyCount "226"]
[EventDate "2024.06.23"]
[EventType "swiss"]
[EventCountry "MNE"]
[SourceTitle "playchess.com"]
[Source "ChessBase"]
[SourceQuality "1"]
[TimeControl "40/5400+30:1800+30"]

1. e4 {[%emt 0:01:18]} d6 {[%emt 0:03:21]} 2. d4 {[%emt 0:01:27]} Nf6 {[%emt 0:00:08]} 3. Nc3 {[%emt 0:00:36]} e5 {[%emt 0:00:12]} 4. Nf3 {[%emt 0:00:10]} Nbd7 {[%emt 0:00:09]} 5. Bc4 {[%emt 0:00:29]} Be7 {[%emt 0:00:11]} 6. O-O {[%emt 0:00:22]} O-O {[%emt 0:00:11]} 7. Re1 {[%emt 0:00:42]} c6 {[%emt 0:00:16]} 8. a4 {[%emt 0:01:59]} Re8 {[%emt 0:00:28]} 9. h3 {[%emt 0:04:23]} h6 {[%emt 0:00:16]} 10. a5 {[%emt 0:03:04]} Bf8 {[%emt 0:00:25]} 11. d5 {[%emt 0:09:08]} b5 {[%emt 0:00:31]} 12. Ba2 {[%emt 0:12:11]} cxd5 {[%emt 0:00:44]} 13. Nxd5 {[%emt 0:01:23]} Bb7 {[%emt 0:01:02]} 14. a6 {[%emt 0:03:02]} Bxd5 {[%emt 0:02:41]} 15. Bxd5 {[%emt 0:03:16]} Nxd5 {[%emt 0:00:15]} 16. Qxd5 {[%emt 0:00:07]} Rb8 {[%emt 0:00:23]} 17. Bd2 {[%emt 0:07:14]} Nf6 {[%emt 0:02:48]} 18. Qb3 {[%emt 0:00:44]} Qc7 {[%emt 0:02:43]} 19. Nh4 {[%emt 0:04:58]} Qc6 {[%emt 0:04:48]} 20. Qf3 {[%emt 0:04:43]} d5 {[%emt 0:08:53]} 21. exd5 {[%emt 0:01:07]} Qxd5 {[%emt 0:01:05]} 22. Be3 {[%emt 0:00:57]} e4 {[%emt 0:02:50]} 23. Qd1 {[%emt 0:05:52]} Qe6 {[%emt 0:26:06]} 24. Bxa7 {[%emt 0:10:36]} Rbd8 {[%emt 0:14:44]} 25. Qc1 {[%emt 0:01:54]} g5 {[%emt 0:02:29]} 26. Nf3 {[%emt 0:00:36]} Qd7 {[%emt 0:01:17]} 27. Bb6 {[%emt 0:04:31]} Rb8 {[%emt 0:09:44]} 28. a7 {[%emt 0:04:36]} Rxb6 {[%emt 0:00:23]} 29. a8=Q {[%emt 0:05:23]} Rxa8 {[%emt 0:00:19]} 30. Rxa8 {[%emt 0:00:03]} exf3 {[%emt 0:00:20]} 31. Rd1 {[%emt 0:01:11]} Rd6 {[%emt 0:02:29]} 32. Rxd6 {[%emt 0:01:44]} Qxd6 {[%emt 0:00:04]} 33. gxf3 {[%emt 0:03:37]} Qd5 {[%emt 0:01:50]} 34. Qa1 {[%emt 0:02:47]} Qxf3 {[%emt 0:00:57]} 35. Qa3 {[%emt 0:00:30]} Qd1+ {[%emt 0:07:21]} 36. Kh2 {[%emt 0:01:03]} Nd7 {[%emt 0:00:52]} 37. Qd3 {[%emt 0:00:36]} Qxd3 {[%emt 0:01:10]} 38. cxd3 {[%emt 0:00:02]} Kg7 {[%emt 0:00:20]} 39. d4 {[%emt 0:00:46]} b4 {[%emt 0:00:32]} 40. Kg2 {[%emt 0:00:00]} Nb6 {[%emt 0:00:00]} 41. Ra2 {[%emt 0:02:44]} Be7 {[%emt 0:18:09]} 42. b3 {[%emt 0:04:53]} Bf6 {[%emt 0:01:21]} 43. Ra5 {[%emt 0:00:49]} Nc8 {[%emt 0:03:07]} 44. Rb5 {[%emt 0:01:21]} Na7 {[%emt 0:04:30]} 45. Rb7 {[%emt 0:05:29]} Bxd4 {[%emt 0:00:44]} 46. Rxb4 {[%emt 0:00:06]} Be5 {[%emt 0:00:56]} 47. Rb7 {[%emt 0:02:08]} Nc6 {[%emt 0:00:16]} 48. Kf3 {[%emt 0:01:54]} Bd4 {[%emt 0:03:04]} 49. Rc7 {[%emt 0:04:05]} Nd8 {[%emt 0:00:21]} 50. b4 {[%emt 0:01:26]} h5 {[%emt 0:02:31]} 51. b5 {[%emt 0:01:31]} h4 {[%emt 0:00:24]} 52. Rc2 {[%emt 0:05:02]} f5 {[%emt 0:01:42]} 53. Ra2 {[%emt 0:03:32]} Ne6 {[%emt 0:00:29]} 54. Ra6 {[%emt 0:00:39]} Nf4 {[%emt 0:01:12]} 55. b6 {[%emt 0:00:45]} Bxb6 {[%emt 0:01:52]} 56. Rxb6 {[%emt 0:00:02]} Nxh3 {[%emt 0:00:08]} 57. Kg2 {[%emt 0:00:53]} Nf4+ {[%emt 0:00:40]} 58. Kf3 {[%emt 0:00:12]} Ng6 {[%emt 0:00:54]} 59. Rb4 {[%emt 0:01:20]} Kh6 {[%emt 0:00:40]} 60. Ra4 {[%emt 0:00:27]} g4+ {[%emt 0:00:18]} 61. Kg2 {[%emt 0:00:28]} Kg5 {[%emt 0:00:07]} 62. Ra5 {[%emt 0:00:42]} Nf4+ {[%emt 0:00:23]} 63. Kh2 {[%emt 0:00:26]} Nd3 {[%emt 0:00:15]} 64. Kg2 {[%emt 0:01:14]} Nc1 {[%emt 0:01:24]} 65. Rc5 {[%emt 0:00:30]} Nd3 {[%emt 0:00:14]} 66. Ra5 {[%emt 0:00:06]} Ne1+ {[%emt 0:00:14]} 67. Kh2 {[%emt 0:00:39]} Kf4 {[%emt 0:00:52]} 68. Rb5 {[%emt 0:00:23]} Nf3+ {[%emt 0:00:32]} 69. Kh1 {[%emt 0:00:37]} Nd2 {[%emt 0:00:19]} 70. Ra5 {[%emt 0:00:40]} Ne4 {[%emt 0:00:15]} 71. Kg1 {[%emt 0:00:36]} h3 {[%emt 0:01:15]} 72. Ra4 {[%emt 0:00:18]} Kg5 {[%emt 0:01:03]} 73. Ra8 {[%emt 0:00:22]} Nd2 {[%emt 0:00:15]} 74. Ra4 {[%emt 0:00:39]} Kh4 {[%emt 0:00:54]} 75. Ra8 {[%emt 0:00:13]} Nf3+ {[%emt 0:00:28]} 76. Kh1 {[%emt 0:00:27]} Nd4 {[%emt 0:00:32]} 77. Rd8 {[%emt 0:00:27]} Ne6 {[%emt 0:00:16]} 78. Re8 {[%emt 0:00:16]} Ng7 {[%emt 0:00:22]} 79. Rf8 {[%emt 0:00:38]} Kg5 {[%emt 0:00:17]} 80. Rg8 {[%emt 0:00:14]} Kf6 {[%emt 0:00:04]} 81. Ra8 {[%emt 0:00:40]} Ne6 {[%emt 0:00:05]} 82. Ra5 {[%emt 0:00:32]} Ng5 {[%emt 0:00:08]} 83. Kg1 {[%emt 0:00:43]} Ne4 {[%emt 0:00:09]} 84. Rb5 {[%emt 0:00:34]} Kg5 {[%emt 0:00:12]} 85. Ra5 {[%emt 0:00:17]} h2+ {[%emt 0:00:13]} 86. Kxh2 {[%emt 0:00:15]} Nxf2 {[%emt 0:00:03]} 87. Kg2 {[%emt 0:00:57]} Ne4 {[%emt 0:00:17]} 88. Ra4 {[%emt 0:00:14]} Kf4 {[%emt 0:00:58]} 89. Ra5 {[%emt 0:00:20]} Nd2 {[%emt 0:01:18]} 90. Rd5 {[%emt 0:00:38]} Nf3 {[%emt 0:00:15]} 91. Ra5 {[%emt 0:00:34]} Nh4+ {[%emt 0:00:17]} 92. Kh2 {[%emt 0:00:31]} g3+ {[%emt 0:01:15]} 93. Kh3 {[%emt 0:00:17]} g2 {[%emt 0:00:48]} 94. Kh2 {[%emt 0:00:40]} Kg4 {[%emt 0:00:18]} 95. Ra2 {[%emt 0:00:27]} Kg5 {[%emt 0:00:30]} 96. Ra8 {[%emt 0:00:12]} Kg4 {[%emt 0:01:39]} 97. Ra2 {[%emt 0:00:19]} Kf3 {[%emt 0:01:03]} 98. Ra3+ {[%emt 0:00:15]} Ke2 {[%emt 0:00:16]} 99. Ra2+ {[%emt 0:00:19]} Kf3 {[%emt 0:00:57]} 100. Ra3+ {[%emt 0:00:17]} Kf4 {[%emt 0:00:12]} 101. Ra4+ {[%emt 0:00:12]} Kg5 {[%emt 0:00:04]} 102. Ra5 {[%emt 0:00:35]} Kg6 {[%emt 0:00:17]} 103. Ra4 {[%emt 0:00:19]} Kh5 {[%emt 0:00:43]} 104. Ra5 {[%emt 0:00:24]} Kg4 {[%emt 0:00:42]} 105. Ra2 {[%emt 0:00:06]} f4 {[%emt 0:00:46]} 106. Rxg2+ {[%emt 0:00:06]} Nxg2 {[%emt 0:00:44]} 107. Kxg2 {[%emt 0:00:02]} f3+ {[%emt 0:00:04]} 108. Kf2 {[%emt 0:00:05]} Kf4 {[%emt 0:00:03]} 109. Kf1 {[%emt 0:00:05]} Ke4 {[%emt 0:00:05]} 110. Kf2 {[%emt 0:00:10]} Kf4 {[%emt 0:00:02]} 111. Kf1 {[%emt 0:00:05]} Ke3 {[%emt 0:00:02]} 112. Ke1 {[%emt 0:00:04]} f2+ {[%emt 0:00:03]} 113. Kf1 {[%emt 0:00:05]} Kf3 {[%emt 0:03:56]} 1/2-1/2

[Event "Srdja Dragasevic Memorial-A 2024"]
[Site "Cetinje"]
[Date "2024.06.25"]
[Round "5.17"]
[White "Ivanovic, Bozidar"]
[Black "Bilenkiy, Maksym"]
[Result "1/2-1/2"]
[ECO "C00"]
[WhiteElo "2371"]
[BlackElo "1978"]
[Annotator "RC"]
[PlyCount "84"]
[EventDate "2024.06.23"]
[EventType "swiss"]
[EventCountry "MNE"]
[SourceTitle "playchess.com"]
[Source "ChessBase"]
[SourceQuality "1"]
[TimeControl "40/5400+30:1800+30"]

1. e4 {[%emt 0:00:07]} e6 {[%emt 0:00:06]} 2. d3 {[%emt 0:00:29]} d5 {[%emt 0:01:23]} 3. Nd2 {[%emt 0:00:17]} Nf6 {[%emt 0:00:19]} 4. g3 {[%emt 0:00:14]} b6 {[%emt 0:00:08]} 5. e5 {[%emt 0:06:03]} Nfd7 {[%emt 0:00:10]} 6. f4 {[%emt 0:15:09]} c5 {[%emt 0:00:40]} 7. Bg2 {[%emt 0:00:09]} Bb7 {[%emt 0:00:16]} 8. Ngf3 {[%emt 0:00:29]} Nc6 {[%emt 0:00:22]} 9. O-O {[%emt 0:00:23]} Be7 {[%emt 0:00:13]} 10. Re1 {[%emt 0:00:30]} b5 {[%emt 0:02:35]} 11. Nf1 {[%emt 0:02:01]} Rc8 {[%emt 0:01:53]} 12. g4 {[%emt 0:04:52]} Qc7 {[%emt 0:04:40]} 13. Ng3 {[%emt 0:00:41]} O-O {[%emt 0:00:44]} 14. Qe2 {[%emt 0:03:39]} Nd4 {[%emt 0:00:39]} 15. Qf2 {[%emt 0:00:45]} Nxf3+ {[%emt 0:02:15]} 16. Qxf3 {[%emt 0:05:32]} Bh4 {[%emt 0:01:08]} 17. g5 {[%emt 0:00:17]} Qb6 {[%emt 0:00:51]} 18. Be3 {[%emt 0:08:23]} Ba8 {[%emt 0:01:36]} 19. Bf2 {[%emt 0:00:34]} Bxg3 {[%emt 0:00:56]} 20. Qxg3 {[%emt 0:03:38]} d4 {[%emt 0:00:30]} 21. Bxa8 {[%emt 0:03:56]} Rxa8 {[%emt 0:00:10]} 22. Re4 {[%emt 0:02:34]} a5 {[%emt 0:02:00]} 23. Qh3 {[%emt 0:04:35]} Rfe8 {[%emt 0:03:41]} 24. Rae1 {[%emt 0:00:52]} g6 {[%emt 0:01:25]} 25. c3 {[%emt 0:03:59]} dxc3 {[%emt 0:00:21]} 26. bxc3 {[%emt 0:00:01]} b4 {[%emt 0:00:52]} 27. d4 {[%emt 0:00:13]} c4 {[%emt 0:02:44]} 28. d5 {[%emt 0:01:03]} Qc7 {[%emt 0:00:01]} 29. dxe6 {[%emt 0:03:45]} Rxe6 {[%emt 0:01:50]} 30. Qf3 {[%emt 0:01:02]} Rc8 {[%emt 0:01:49]} 31. Rb1 {[%emt 0:03:32]} Qb7 {[%emt 0:01:55]} 32. Qe2 {[%emt 0:00:02]} Rec6 {[%emt 0:04:02]} 33. e6 {[%emt 0:00:15]} fxe6 {[%emt 0:00:04]} 34. Rxe6 {[%emt 0:00:06]} Nf8 {[%emt 0:00:10]} 35. Re7 {[%emt 0:03:46]} R6c7 {[%emt 0:02:44]} 36. Re5 {[%emt 0:01:02]} Qc6 {[%emt 0:02:44]} 37. Bd4 {[%emt 0:00:15]} bxc3 {[%emt 0:01:03]} 38. Bxc3 {[%emt 0:00:18]} Rd7 {[%emt 0:01:54]} 39. Rxa5 {[%emt 0:00:49]} Qe6 {[%emt 0:02:20]} 40. Qe5 {[%emt 0:00:00]} Qg4+ {[%emt 0:00:00]} 41. Kf2 {[%emt 0:09:44]} Qh4+ {[%emt 0:01:13]} 42. Kg1 {[%emt 0:00:12]} Qg4+ {[%emt 0:00:07]} 1/2-1/2